bitfinex-derivatives/quotes_BTCF0:USTF0_20251110
["timestamp","ask_amount","ask_price","bid_price","bid_amount"]
[1762805479612,0.54857467,106050.0,106040.0,0.15729523]
[1762805482913,0.64202104,106050.0,106040.0,0.06295803]
[1762805483816,0.64202104,106050.0,106040.0,0.00519803]
[1762805484417,0.64202104,106050.0,106040.0,0.002]
[1762805485312,0.0943372,106040.0,106030.0,0.1879828]
[1762805485619,0.28122994,106040.0,106030.0,0.28452683]
[1762805486513,0.28122994,106040.0,106030.0,0.28652683]
[1762805486816,0.28122994,106040.0,106030.0,0.14277083]
[1762805487616,0.37467631,106040.0,106030.0,0.12094083]
[1762805487824,0.37467631,106040.0,106030.0,0.0144065]
[1762805490318,0.37467631,106040.0,106030.0,0.06703453]
[1762805490923,0.28122994,106040.0,106030.0,0.12496453]
[1762805491822,0.28122994,106040.0,106030.0,0.12296453]
[1762805492325,0.37467631,106040.0,106030.0,0.12296453]
[1762805492720,0.37467631,106040.0,106030.0,0.10113453]
[1762805492929,0.37567631,106040.0,106030.0,0.10013453]
[1762805494613,0.28222994,106040.0,106030.0,0.12196453]
[1762805494820,0.37567631,106040.0,106030.0,0.12196453]
[1762805495021,0.28222994,106040.0,106030.0,0.12196453]
[1762805498435,0.0953372,106040.0,106030.0,0.12196453]
[1762805498624,0.28222994,106040.0,106030.0,0.12196453]
[1762805498934,0.18880208,106040.0,106030.0,0.12196453]
[1762805499436,0.18780208,106040.0,106030.0,0.21631053]
[1762805500234,0.18780208,106040.0,106030.0,0.21731053]
[1762805500532,0.18780208,106040.0,106030.0,0.12296453]
[1762805501534,0.18780208,106040.0,106030.0,0.21731053]
[1762805502131,0.4551283,106050.0,106040.0,0.1525771]
[1762805502326,0.54859318,106050.0,106040.0,0.22205143]
[1762805503832,0.54959318,106050.0,106040.0,0.22205143]
[1762805504433,0.54959318,106050.0,106040.0,0.15477513]
[1762805509233,0.54959318,106050.0,106040.0,0.22205143]
[1762805509427,0.54959318,106050.0,106040.0,0.15477513]
[1762805510328,0.54959308,106050.0,106040.0,0.15477513]
[1762805510529,0.3618,106050.0,106040.0,0.15477513]
[1762805512130,0.54959308,106050.0,106040.0,0.15477513]
[1762805512336,0.45526488,106050.0,106040.0,0.15477513]
[1762805512538,0.3618,106050.0,106040.0,0.15477513]
[1762805513028,0.3618,106050.0,106040.0,0.22205143]
[1762805515341,0.3618,106050.0,106040.0,0.31551631]
[1762805515930,0.3618,106050.0,106040.0,0.22205143]
[1762805517334,0.3618,106050.0,106040.0,0.31551631]
[1762805518342,0.3618,106050.0,106040.0,0.22205143]
[1762805520336,0.3618,106050.0,106040.0,0.55127631]
[1762805521137,0.3618,106050.0,106040.0,0.31551631]
[1762805521541,0.3618,106050.0,106040.0,0.55127631]
[1762805521848,0.3618,106050.0,106040.0,0.56863736]
[1762805522637,0.25058603,106050.0,106040.0,1.16863736]
[1762805522837,0.21558603,106050.0,106040.0,1.16863736]
[1762805523138,0.18058603,106050.0,106040.0,1.16863736]
[1762805523337,0.18058603,106050.0,106040.0,1.08400001]
[1762805523646,0.18058603,106050.0,106040.0,1.94797042]
[1762805523947,0.18058603,106050.0,106040.0,1.83028276]
[1762805524239,0.36094177,106060.0,106050.0,0.1386082]
[1762805524445,0.36094177,106060.0,106050.0,0.23860111]
[1762805524749,0.36094177,106060.0,106050.0,0.59197091]
[1762805524939,0.38225177,106060.0,106050.0,0.59197091]
[1762805525244,0.40430177,106060.0,106050.0,0.35625091]
[1762805525444,0.40430177,106060.0,106050.0,0.55934563]
[1762805526141,0.40430177,106060.0,106050.0,0.32362563]
[1762805526340,0.40430177,106060.0,106050.0,0.32562563]
[1762805527041,0.36094177,106060.0,106050.0,0.32562563]
[1762805528046,7e-08,106060.0,106050.0,0.41909051]
[1762805528350,0.0522,106080.0,106070.0,0.1385905]
[1762805528538,0.0522,106080.0,106070.0,0.20798725]
[1762805529542,0.04336,106080.0,106070.0,0.22097725]
[1762805529741,0.05644,106080.0,106070.0,0.20798725]
[1762805531342,0.05644,106080.0,106070.0,0.21704776]
[1762805531546,0.05644,106080.0,106070.0,0.28424648]
[1762805531746,0.05644,106080.0,106070.0,0.21704776]
[1762805535053,0.04336,106090.0,106080.0,0.1515716]
[1762805535260,0.04336,106090.0,106080.0,0.24723451]
[1762805536140,4.602e-05,106120.0,106090.0,0.00504]
[1762805536341,4.602e-05,106120.0,106110.0,0.24720781]
[1762805536342,0.04340602,106120.0,106110.0,0.24720781]
[1762805536953,4.602e-05,106120.0,106110.0,0.24720781]
[1762805537141,0.05648602,106120.0,106110.0,0.23421781]
[1762805537344,0.04340602,106120.0,106110.0,0.15374293]
[1762805537642,0.05748602,106120.0,106110.0,0.24920781]
[1762805538454,0.05648602,106120.0,106110.0,0.25220781]
[1762805538747,0.05648602,106120.0,106110.0,0.21965328]
[1762805539443,0.05648602,106120.0,106110.0,0.31311816]
[1762805539845,0.15075202,106120.0,106110.0,0.31311816]
[1762805540546,0.05648602,106120.0,106110.0,0.31311816]
[1762805541144,0.05648602,106120.0,106110.0,0.21965328]
[1762805541340,0.05648602,106120.0,106110.0,0.31311816]
[1762805541550,0.15075202,106120.0,106110.0,0.21965328]
[1762805541860,0.15075202,106120.0,106110.0,0.31311816]
[1762805543259,0.05648602,106120.0,106110.0,0.31311816]
[1762805543949,0.15075202,106120.0,106110.0,0.31311816]
[1762805544952,0.05648602,106120.0,106110.0,0.31311816]
[1762805545151,0.04649602,106120.0,106110.0,0.32610816]
[1762805546946,0.05929602,106120.0,106110.0,0.23264328]
[1762805547255,0.1527609,106120.0,106110.0,0.21965328]
[1762805547756,0.05929602,106120.0,106110.0,0.21965328]
[1762805547956,0.05929602,106120.0,106110.0,0.31311816]
[1762805551756,0.05929602,106120.0,106110.0,0.32610816]
[1762805551757,0.04649602,106120.0,106110.0,0.32610816]
[1762805553257,4.602e-05,106120.0,106110.0,0.32610816]
[1762805553463,0.02327602,106120.0,106110.0,0.32610816]
[1762805554058,4.602e-05,106120.0,106110.0,0.32610816]
[1762805554257,0.05953,106140.0,106130.0,0.1381771]
[1762805554450,0.05867652,106140.0,106130.0,0.22158393]
[1762805554656,0.15292472,106140.0,106130.0,0.22158393]
[1762805554862,0.15292472,106140.0,106130.0,0.12811905]
[1762805555257,0.02265652,106140.0,106130.0,0.22802393]
[1762805555657,0.04587652,106140.0,106130.0,0.22802393]
[1762805555957,0.04587652,106140.0,106130.0,0.2394628]
[1762805556458,0.02265652,106140.0,106130.0,0.2404628]
[1762805557060,0.04587652,106140.0,106130.0,0.2404628]
[1762805558855,0.04587652,106140.0,106130.0,0.24023759]
[1762805559260,0.15191619,106140.0,106130.0,0.14055792]
[1762805559467,0.24616439,106140.0,106130.0,0.13954049]
[1762805559663,0.33940406,106140.0,106130.0,0.02363082]
[1762805559856,0.33940406,106140.0,106130.0,0.04630082]
[1762805560361,0.15292472,106140.0,106130.0,0.02363082]
[1762805560561,0.33940406,106140.0,106130.0,0.02363082]
[1762805560758,0.15292472,106140.0,106130.0,0.04630082]
[1762805560958,0.24616439,106140.0,106130.0,0.04630082]
[1762805561160,0.33940406,106140.0,106130.0,0.04630082]
[1762805561368,0.33940406,106140.0,106130.0,0.0146369]
[1762805562970,0.15292472,106140.0,106130.0,0.0146369]
[1762805563169,0.33940406,106140.0,106130.0,0.0146369]
[1762805564861,0.33940406,106140.0,106130.0,0.0326369]
[1762805568274,0.153516,106120.0,106110.0,0.16234907]
[1762805568574,0.33999534,106120.0,106110.0,0.1432971]
[1762805568867,0.33999534,106120.0,106110.0,0.07609838]
[1762805569077,0.33999534,106120.0,106110.0,0.1432971]
[1762805569369,0.33999534,106120.0,106110.0,0.15639697]
[1762805569673,0.33999534,106120.0,106110.0,0.15839697]
[1762805569868,0.33999534,106120.0,106110.0,0.11244825]
[1762805570460,0.33999534,106120.0,106110.0,0.09119825]
[1762805571273,0.33999534,106120.0,106110.0,0.11292825]
[1762805571462,0.33999534,106120.0,106110.0,0.01509987]
[1762805571671,0.33999534,106120.0,106100.0,0.00024473]
[1762805571672,0.1487549,106110.0,106100.0,0.00024473]
[1762805571881,0.33523424,106110.0,106100.0,0.00024473]
[1762805572376,0.33523424,106110.0,106100.0,0.0103916]
[1762805573678,0.33523424,106110.0,106100.0,0.01258963]
[1762805574168,0.33623424,106110.0,106100.0,0.03431963]
[1762805574675,0.33723424,106110.0,106100.0,0.03431963]
[1762805575276,0.33823424,106110.0,106100.0,0.03431963]
[1762805575868,0.33823424,106110.0,106100.0,0.01258963]
[1762805576065,0.33923424,106110.0,106100.0,0.01258963]
[1762805578380,0.33923424,106110.0,106100.0,0.05578963]
[1762805578573,0.1419749,106110.0,106100.0,0.06898963]
[1762805578766,0.23521457,106110.0,106100.0,0.06898963]
[1762805578971,0.1419749,106110.0,106100.0,0.06898963]
[1762805579170,0.23521457,106110.0,106100.0,0.06898963]
[1762805579387,0.23521457,106110.0,106100.0,0.16327333]
[1762805580176,0.23521457,106110.0,106100.0,0.06898963]
[1762805580777,0.23521457,106110.0,106100.0,0.16327333]
[1762805581378,0.23592457,106110.0,106100.0,0.16327333]
[1762805583581,0.24670457,106110.0,106100.0,0.16327333]
[1762805583974,0.1426849,106110.0,106100.0,0.16327333]
[1762805584283,0.23592457,106110.0,106100.0,0.16327333]
[1762805584480,0.24670457,106110.0,106100.0,0.06898963]
[1762805584783,0.24670457,106110.0,106100.0,0.05578963]
[1762805585283,0.24670457,106110.0,106100.0,0.15007333]
[1762805585484,0.24670457,106110.0,106100.0,0.05578963]
[1762805586083,0.24670457,106110.0,106100.0,0.15007343]
[1762805586280,0.23592457,106110.0,106100.0,0.16327343]
[1762805588485,0.24670457,106110.0,106100.0,0.01258963]
[1762805588788,0.24670457,106110.0,106100.0,0.05664963]
[1762805588789,0.33994424,106110.0,106100.0,0.05664963]
[1762805589085,0.24670457,106110.0,106100.0,0.12061963]
[1762805589292,0.1426849,106110.0,106100.0,0.3081431]
[1762805589482,0.04841,106110.0,106100.0,0.3081431]
[1762805589679,0.14164967,106110.0,106100.0,0.21490343]
[1762805589888,0.23592457,106110.0,106100.0,0.21490343]
[1762805591190,0.1426849,106110.0,106100.0,0.21490343]
[1762805591378,0.24670457,106110.0,106100.0,0.10741963]
[1762805591890,0.23592457,106110.0,106100.0,0.21490343]
[1762805592397,0.23592457,106110.0,106100.0,0.28210215]
[1762805592689,0.14164967,106110.0,106100.0,0.28210215]
[1762805592893,0.1426849,106110.0,106100.0,0.37534182]
[1762805593100,0.0266,106110.0,106100.0,0.37534182]
[1762805593282,0.004,106110.0,106100.0,0.37534182]
[1762805593484,0.11896967,106110.0,106100.0,0.28210215]
[1762805594091,0.14077967,106110.0,106100.0,0.28210215]
[1762805594290,0.11896967,106110.0,106100.0,0.28210215]
[1762805594594,0.09723967,106110.0,106100.0,0.39214151]
[1762805594896,0.004,106110.0,106100.0,0.39214151]
[1762805595791,0.004,106110.0,106100.0,0.48538118]
[1762805596294,0.004,106110.0,106100.0,0.75463257]
[1762805596494,0.11511144,106130.0,106120.0,0.151526]
[1762805596791,0.11511144,106130.0,106120.0,0.31416886]
[1762805597384,0.09338144,106130.0,106120.0,0.31416886]
[1762805597585,0.00014177,106130.0,106120.0,0.2469637]
[1762805597892,0.09338144,106130.0,106120.0,0.2469637]
[1762805599493,0.23109854,106130.0,106120.0,0.05945803]
[1762805599690,0.23109854,106130.0,106120.0,0.15372403]
[1762805599897,0.23109854,106130.0,106120.0,0.2208546]
[1762805600691,0.13684144,106130.0,106120.0,0.2208546]
[1762805601094,0.13785887,106130.0,106120.0,0.2208546]
[1762805601296,0.23109854,106130.0,106120.0,0.2208546]
[1762805602494,0.13684144,106130.0,106120.0,0.31409427]
[1762805602696,0.11511144,106130.0,106120.0,0.31409427]
[1762805603289,0.20936854,106130.0,106120.0,0.31409427]
[1762805603491,0.23109854,106130.0,106120.0,0.31409427]
[1762805603686,0.23109854,106130.0,106120.0,0.2208546]
[1762805604804,0.13684144,106130.0,106120.0,0.2208546]
[1762805605105,0.09338144,106130.0,106120.0,0.2469637]
[1762805605491,0.13794144,106130.0,106120.0,0.15372403]
[1762805605703,0.23219854,106130.0,106120.0,0.15372403]
[1762805607802,0.04470177,106130.0,106120.0,0.15372403]
[1762805607999,0.13794144,106130.0,106120.0,0.2469637]
[1762805608505,0.23219854,106130.0,106120.0,0.2469637]
[1762805609006,0.13794144,106130.0,106120.0,0.2469637]
[1762805609194,0.13794144,106130.0,106120.0,0.15372403]
[1762805609406,0.23219854,106130.0,106120.0,0.2469637]
[1762805609718,0.13794144,106130.0,106120.0,0.2469637]
[1762805611107,0.13794144,106130.0,106120.0,0.15372403]
[1762805611308,0.13794144,106130.0,106120.0,0.31409427]
[1762805611506,0.11621144,106130.0,106120.0,0.31409427]
[1762805611806,0.00014177,106130.0,106120.0,0.56461766]
[1762805612006,0.00014177,106130.0,106120.0,0.80017766]
[1762805612207,0.00014177,106130.0,106120.0,0.83382059]
[1762805612813,0.0002355,106150.0,106140.0,0.05872]
[1762805613117,0.0002355,106150.0,106140.0,0.4087173]
[1762805613312,0.0002355,106150.0,106140.0,0.42548524]
[1762805613622,0.0002355,106150.0,106140.0,0.2484059]
[1762805613811,0.0002355,106150.0,106140.0,0.34164557]
[1762805614118,0.0012355,106150.0,106140.0,0.34164557]
[1762805614315,0.0012355,106150.0,106140.0,0.48249795]
[1762805614515,0.0012355,106150.0,106140.0,0.80185762]
[1762805615216,0.0012355,106150.0,106140.0,0.82545762]
[1762805615810,0.0012355,106150.0,106140.0,0.58993762]
[1762805616009,0.0012355,106150.0,106140.0,0.82545762]
[1762805616213,0.0012355,106150.0,106140.0,0.40345828]
[1762805616214,0.0240655,106150.0,106140.0,0.40345828]
[1762805616409,0.0240655,106150.0,106140.0,0.49669795]
[1762805616610,0.0002355,106150.0,106140.0,0.5647102]
[1762805616809,0.0002355,106150.0,106140.0,0.5741102]
[1762805618521,0.0002355,106150.0,106140.0,0.5505102]
[1762805620119,0.0447955,106150.0,106140.0,0.5505102]
[1762805620512,0.0230655,106150.0,106140.0,0.5505102]
[1762805620713,0.0447955,106150.0,106140.0,0.5505102]
[1762805620913,0.0447955,106150.0,106140.0,0.4572585]
[1762805622119,0.0230655,106150.0,106140.0,0.4572585]
[1762805623617,0.0002355,106150.0,106140.0,0.4572585]
[1762805624516,0.0002355,106150.0,106140.0,0.39024625]
[1762805624721,0.0002355,106150.0,106140.0,0.47408592]
[1762805627024,0.0002355,106150.0,106140.0,0.29701861]
[1762805627222,0.0002355,106150.0,106140.0,0.39024625]
[1762805628825,0.0447955,106150.0,106140.0,0.29701861]
[1762805629122,0.0002355,106150.0,106140.0,0.39024625]
[1762805629325,0.0230655,106150.0,106140.0,0.39024625]
[1762805629919,0.0002355,106150.0,106140.0,0.39024625]
[1762805630823,0.0002355,106150.0,106140.0,0.48347389]
[1762805631123,0.04400312,106180.0,106160.0,0.202361]
[1762805631331,0.04400312,106180.0,106170.0,0.15488963]
[1762805631526,0.02113312,106180.0,106170.0,0.15488963]
[1762805631923,0.02113312,106180.0,106170.0,0.29573084]
[1762805631924,6.312e-05,106180.0,106170.0,0.29573084]
[1762805632127,0.00023539,106200.0,106190.0,0.05847]
[1762805632322,0.04417539,106200.0,106190.0,0.06066803]
[1762805632624,0.04417539,106200.0,106190.0,0.15487183]
[1762805632930,0.11550039,106200.0,106190.0,0.24809947]
[1762805633131,0.11550039,106200.0,106190.0,0.31518762]
[1762805633423,0.02130539,106200.0,106190.0,0.22195998]
[1762805633631,0.00023539,106200.0,106190.0,0.55058762]
[1762805633819,0.00023539,106200.0,106190.0,0.31518762]
[1762805634419,0.00023539,106200.0,106190.0,0.55058762]
[1762805634615,0.00123539,106200.0,106190.0,0.55058762]
[1762805634816,0.00123539,106200.0,106190.0,0.31518762]
[1762805635420,0.00123539,106200.0,106190.0,0.24809947]
[1762805635620,0.10564451,106230.0,106190.0,0.24809947]
[1762805635817,0.1381739,106230.0,106220.0,0.1494172]
[1762805636024,0.23140154,106230.0,106220.0,0.13936846]
[1762805636235,0.13824136,106240.0,106230.0,0.05524]
[1762805636430,0.242939,106240.0,106230.0,0.00219803]
[1762805636824,0.32040147,106240.0,106230.0,0.04471803]
[1762805637024,0.14971136,106240.0,106230.0,0.04471803]
[1762805637625,0.1520784,106230.0,106220.0,0.04252]
[1762805637824,0.32276851,106230.0,106220.0,0.04471803]
[1762805638124,0.1520784,106230.0,106220.0,0.04471803]
[1762805638318,0.1520784,106230.0,106220.0,0.09545803]
[1762805638822,0.1520784,106230.0,106220.0,0.09745803]
[1762805639223,0.1520784,106230.0,106220.0,0.11017803]
[1762805639432,0.1520784,106230.0,106220.0,0.09645803]
[1762805639833,0.1520784,106230.0,106220.0,0.19063523]
[1762805640035,0.05791,106230.0,106220.0,0.21469733]
[1762805640236,0.1520784,106230.0,106220.0,0.19639289]
[1762805640530,0.1520784,106230.0,106220.0,0.29057009]
[1762805640735,0.1504184,106230.0,106220.0,0.29057009]
[1762805641127,0.1504184,106230.0,106220.0,0.29157009]
[1762805642528,0.1504184,106230.0,106220.0,0.29057009]
[1762805642732,0.1504184,106230.0,106220.0,0.19639289]
[1762805642931,0.1504184,106230.0,106220.0,0.29057009]
[1762805643238,0.1381684,106230.0,106220.0,0.29057009]
[1762805643937,0.044,106230.0,106220.0,0.29057009]
[1762805644435,0.04407876,106240.0,106230.0,0.1494084]
[1762805644636,7.876e-05,106240.0,106230.0,0.15160643]
[1762805645334,0.04423528,106250.0,106240.0,0.1493995]
[1762805645528,0.04423528,106250.0,106240.0,0.15159753]
[1762805645729,0.04423528,106250.0,106240.0,0.05743803]
[1762805645929,0.13838598,106250.0,106240.0,0.15159753]
[1762805646124,0.04423528,106250.0,106240.0,0.15159753]
[1762805646427,0.00023528,106250.0,106240.0,0.15159753]
[1762805647830,0.00023528,106250.0,106240.0,0.32228764]
[1762805648337,0.00023528,106250.0,106240.0,0.15159753]
[1762805653636,0.00506058,106260.0,106250.0,0.1493906]
[1762805653937,0.1381152,106290.0,106280.0,0.05524]
[1762805654128,0.14005342,106290.0,106280.0,0.04519853]
[1762805654527,0.14005342,106290.0,106280.0,0.13932263]
[1762805654731,0.04593822,106290.0,106280.0,0.13932263]
[1762805654942,0.03202822,106290.0,106280.0,0.13932263]
[1762805655339,0.14794677,106300.0,106290.0,0.1493552]
[1762805655643,0.13834147,106300.0,106290.0,0.15155323]
[1762805656041,0.13834147,106300.0,106290.0,0.05743803]
[1762805656440,0.15225147,106300.0,106290.0,0.05743803]
[1762805656629,0.00023517,106300.0,106290.0,0.15155323]
[1762805657848,0.02124506,106350.0,106340.0,0.04252]
[1762805658033,0.1519898,106330.0,106320.0,0.04252]
[1762805658235,0.32267991,106330.0,106320.0,0.00219803]
[1762805658441,0.1519986,106320.0,106310.0,0.0001411]
[1762805658632,0.1519986,106320.0,106310.0,0.00233913]
[1762805658633,0.32268871,106320.0,106310.0,0.00233913]
[1762805658839,0.1519986,106320.0,106310.0,0.02343913]
[1762805659035,0.32268871,106320.0,106310.0,0.04485913]
[1762805659939,0.1519986,106320.0,106310.0,0.04485913]
[1762805660337,0.1519986,106320.0,106310.0,0.04585913]
[1762805660547,0.32268871,106320.0,106310.0,0.04585913]
[1762805660844,0.32268871,106320.0,106310.0,0.04485913]
[1762805661140,0.32268871,106320.0,106310.0,0.04585913]
[1762805663252,0.32268871,106320.0,106310.0,0.13995663]
[1762805664051,0.02101,106320.0,106310.0,0.15283663]
[1762805664248,0.04318,106320.0,106310.0,0.20355663]
[1762805664545,0.1510098,106330.0,106320.0,0.05779]
[1762805664745,0.32169991,106330.0,106320.0,0.04710803]
[1762805664950,0.32169991,106330.0,106320.0,0.02489803]
[1762805665348,0.32169991,106330.0,106320.0,0.14119663]
[1762805665750,0.1510098,106330.0,106320.0,0.14119663]
[1762805666850,0.1510098,106330.0,106320.0,0.04710803]
[1762805667250,0.32169991,106330.0,106320.0,0.14119663]
[1762805667544,0.32169991,106330.0,106320.0,0.02489803]
[1762805667943,0.32169991,106330.0,106320.0,0.14119663]
[1762805668348,0.32169991,106330.0,106320.0,0.15407663]
[1762805668945,0.1510098,106330.0,106320.0,0.15407663]
[1762805669145,0.32169991,106330.0,106320.0,0.15407663]
[1762805669346,0.32169991,106330.0,106320.0,0.05998803]
[1762805669554,0.32169991,106330.0,106320.0,0.04710803]
[1762805670555,0.32169991,106330.0,106320.0,0.14119663]
[1762805670756,0.32169991,106330.0,106320.0,0.04710803]
[1762805673260,0.1510187,106320.0,106310.0,0.0508611]
[1762805673455,0.32170881,106320.0,106310.0,0.05305913]
[1762805674959,0.32170881,106320.0,106310.0,0.0508611]
[1762805675257,0.32170881,106320.0,106290.0,0.13177612]
[1762805675258,0.1335064,106300.0,106290.0,0.13177612]
[1762805675458,0.30419651,106300.0,106290.0,0.13397415]
[1762805675857,0.30419651,106300.0,106290.0,0.22808935]
[1762805676361,0.27030838,106300.0,106290.0,0.23008935]
[1762805677263,0.27030838,106300.0,106290.0,0.23308935]
[1762805677761,0.27030838,106300.0,106290.0,0.13897415]
[1762805678658,0.27030838,106300.0,106290.0,0.005]
[1762805679946,0.27030838,106300.0,106290.0,0.004]
[1762805680557,0.27030838,106300.0,106290.0,0.002]
[1762805680958,0.28569375,106300.0,106290.0,0.002]
[1762805682655,0.28569375,106300.0,106250.0,0.1741971]
[1762805682656,0.0941418,106260.0,106250.0,0.01296345]
[1762805682854,0.3157045,106260.0,106250.0,0.06007148]
[1762805683252,0.28180337,106260.0,106250.0,0.15422208]
[1762805683958,0.28180337,106260.0,106250.0,0.06607148]
[1762805684261,0.28180337,106260.0,106250.0,0.06807148]
[1762805684955,0.0354,106260.0,106250.0,0.16222208]
[1762805685158,0.0001411,106270.0,106260.0,0.0941418]
[1762805685362,0.129674,106270.0,106260.0,0.15412983]
[1762805685558,0.12862245,106270.0,106260.0,0.15412983]
[1762805685759,0.22275535,106270.0,106260.0,0.15412983]
[1762805686068,0.20015671,106270.0,106260.0,0.15412983]
[1762805686560,0.10602381,106270.0,106260.0,0.15412983]
[1762805686757,0.10702381,106270.0,106260.0,0.15412983]
[1762805686964,0.13024604,106270.0,106260.0,0.15412983]
[1762805687163,0.00013885,106280.0,106270.0,0.1519229]
[1762805687464,0.09426295,106280.0,106270.0,0.15412093]
[1762805687651,0.09426295,106280.0,106270.0,0.05998803]
[1762805687854,0.21056653,106280.0,106270.0,0.05998803]
[1762805688866,0.21056653,106280.0,106270.0,0.15412093]
[1762805689964,0.09426295,106280.0,106270.0,0.15412093]
[1762805690165,0.21056653,106280.0,106270.0,0.15412093]
[1762805691757,0.21056653,106280.0,106270.0,0.05998803]
[1762805692962,0.21056653,106280.0,106270.0,0.15412093]
[1762805696770,0.21056653,106280.0,106270.0,0.05998803]
[1762805697366,0.17667127,106280.0,106270.0,0.05998803]
[1762805699867,0.17667127,106280.0,106270.0,0.15412093]
[1762805700369,0.17667127,106280.0,106270.0,0.05998803]
[1762805700574,0.17667127,106280.0,106270.0,0.15412093]
[1762805700765,0.29297485,106280.0,106270.0,0.05998803]
[1762805701170,0.06036769,106280.0,106270.0,0.05998803]
[1762805701366,0.21041028,106300.0,106290.0,0.1516952]
[1762805701572,0.21041028,106300.0,106290.0,0.15389323]
[1762805702064,0.21041028,106300.0,106290.0,0.05977803]
[1762805702772,0.21141028,106300.0,106290.0,0.05977803]
[1762805702976,0.21141028,106300.0,106290.0,0.00219803]
[1762805703186,0.0941152,106290.0,106280.0,0.0001411]
[1762805703477,0.21041878,106290.0,106280.0,0.00233913]
[1762805703669,0.21041878,106290.0,106280.0,0.01598913]
[1762805704471,0.32672236,106290.0,106280.0,0.0001411]
[1762805704775,0.0941329,106270.0,106260.0,0.08970318]
[1762805705081,0.21043648,106270.0,106260.0,0.07902121]
[1762805705274,0.21043648,106270.0,106260.0,0.00219803]
[1762805705978,0.21043648,106270.0,106260.0,0.00319803]
[1762805706283,0.21043648,106270.0,106260.0,0.00419803]
[1762805706468,0.17653189,106270.0,106260.0,0.00419803]
[1762805707369,0.17653189,106270.0,106260.0,0.002]
[1762805707780,0.17653189,106270.0,106260.0,0.001]
[1762805708281,0.0941418,106260.0,106250.0,0.01387455]
[1762805708481,0.21044538,106260.0,106250.0,0.03734258]
[1762805708775,0.21044538,106260.0,106250.0,0.06000258]
[1762805709075,0.0941595,106240.0,106230.0,0.11095132]
[1762805709272,0.32676666,106240.0,106230.0,0.09187935]
[1762805709680,0.32676666,106240.0,106230.0,0.07822935]
[1762805709976,0.32685213,106240.0,106230.0,0.13580935]
[1762805710373,0.32685213,106240.0,106230.0,0.13680935]
[1762805710574,0.21054855,106240.0,106230.0,0.06077803]
[1762805710773,0.32685213,106240.0,106230.0,0.06077803]
[1762805711376,0.21054855,106240.0,106230.0,0.06077803]
[1762805711674,0.21054855,106240.0,106230.0,0.01784803]
[1762805712068,0.0941684,106230.0,106220.0,0.0251332]
[1762805712274,0.21047198,106230.0,106220.0,0.07126123]
[1762805713180,0.21047198,106230.0,106220.0,0.07226123]
[1762805713783,0.21047198,106230.0,106220.0,0.02833123]
[1762805713974,0.21047198,106230.0,106220.0,0.0011411]
[1762805714176,0.0931772,106220.0,106210.0,0.01365]
[1762805714389,0.20948078,106220.0,106210.0,0.02609307]
[1762805714682,0.20948078,106220.0,106210.0,0.0722211]
[1762805714882,0.20948078,106220.0,106210.0,0.1664072]
[1762805715281,0.20948078,106220.0,106210.0,0.1704072]
[1762805715474,0.20948078,106220.0,106210.0,0.0186411]
[1762805715676,0.0931772,106220.0,106210.0,0.1704072]
[1762805715986,0.21148078,106220.0,106210.0,0.1684072]
[1762805717379,0.21048078,106220.0,106210.0,0.24290481]
[1762805717579,0.21148078,106220.0,106210.0,0.24290481]
[1762805718279,0.21048078,106220.0,106210.0,0.24290481]
[1762805718472,0.21048078,106220.0,106210.0,0.14871871]
[1762805720675,0.11630358,106220.0,106210.0,0.24290501]
[1762805720986,0.21048098,106220.0,106210.0,0.24290501]
[1762805721677,0.21048098,106220.0,106210.0,0.14871871]
[1762805722380,0.21048098,106220.0,106210.0,0.24290501]
[1762805722787,0.21048098,106220.0,106210.0,0.14871871]
[1762805724473,0.17656421,106220.0,106210.0,0.0722211]
[1762805726284,0.21048098,106220.0,106210.0,0.0722211]
[1762805728185,0.21048098,106220.0,106210.0,0.0282911]
[1762805728386,0.21056044,106220.0,106210.0,0.01244307]
[1762805728590,0.0941861,106210.0,106200.0,0.03522649]
[1762805728793,0.21048968,106210.0,106200.0,0.06038452]
[1762805728982,0.21048968,106210.0,106200.0,0.07262345]
[1762805728983,0.0941861,106210.0,106200.0,0.07262345]
[1762805729182,0.21048968,106210.0,106200.0,0.07262345]
[1762805730086,0.21048968,106210.0,106200.0,0.07362345]
[1762805730585,0.21048968,106210.0,106200.0,0.01461542]
[1762805730891,0.32679326,106210.0,106200.0,0.01461542]
[1762805731081,0.32679326,106210.0,106200.0,0.00237649]
[1762805731687,0.0941951,106200.0,106190.0,0.01365]
[1762805731885,0.32680226,106200.0,106190.0,0.01365]
[1762805732082,0.094204,106190.0,106180.0,0.05789522]
[1762805732288,0.21059305,106190.0,106180.0,0.05789522]
[1762805732487,0.21059305,106190.0,106180.0,0.07006771]
[1762805732684,0.21059305,106190.0,106180.0,0.02590771]
[1762805732884,0.21059305,106190.0,106180.0,0.01225771]
[1762805733695,0.21059305,106190.0,106180.0,0.02497771]
[1762805733889,0.21059305,106190.0,106180.0,8.522e-05]
[1762805737094,0.21059305,106190.0,106180.0,0.01203503]
[1762805737494,0.23267164,106190.0,106180.0,0.01203503]
[1762805739698,0.23267164,106190.0,106180.0,0.01423306]
[1762805739900,0.23367164,106190.0,106180.0,0.01423306]
[1762805740501,0.23567164,106190.0,106180.0,0.01423306]
[1762805741195,0.23567164,106190.0,106170.0,0.0128611]
[1762805741196,0.1121417,106170.0,106160.0,0.06892112]
[1762805741390,0.22844528,106170.0,106160.0,0.07111915]
[1762805742594,0.34481848,106170.0,106160.0,0.01423915]
[1762805742800,0.34481848,106170.0,106160.0,0.01523915]
[1762805742997,0.28322183,106170.0,106160.0,0.01623915]
[1762805745702,0.28322183,106170.0,106160.0,0.01523915]
[1762805746008,0.30528344,106170.0,106160.0,0.01423915]
[1762805746202,0.28322183,106170.0,106160.0,0.01423915]
[1762805746400,0.30527879,106170.0,106160.0,0.01423915]
[1762805746595,0.30627879,106170.0,106160.0,0.03543915]
[1762805746802,0.30827879,106170.0,106160.0,0.01423915]
[1762805749110,0.30827879,106170.0,106160.0,0.03543915]
[1762805752911,0.30827879,106170.0,106160.0,0.01423915]
[1762805753712,0.30827879,106170.0,106160.0,0.03713915]
[1762805754415,0.30827879,106170.0,106160.0,0.01423915]
[1762805755117,0.30827879,106170.0,106160.0,0.03538915]
[1762805756118,0.30827879,106170.0,106160.0,0.01423915]
[1762805756323,0.30827879,106170.0,106160.0,0.07082915]
[1762805756523,0.30827879,106170.0,106160.0,0.03538915]
[1762805758220,0.30827879,106170.0,106160.0,0.07082915]
[1762805759811,0.28622183,106170.0,106160.0,0.07082915]
[1762805760216,0.30834167,106170.0,106160.0,0.07082915]
[1762805761818,0.30834167,106170.0,106160.0,0.16505975]
[1762805762006,0.30834167,106170.0,106160.0,0.07082915]
[1762805763019,0.25228816,106170.0,106160.0,0.07082915]
[1762805765911,0.27460809,106170.0,106160.0,0.07082915]
[1762805766312,0.25228816,106170.0,106160.0,0.07082915]
[1762805766823,0.26777433,106170.0,106160.0,0.07082915]
[1762805768021,0.08127765,106170.0,106160.0,0.07082915]
[1762805768222,0.08127765,106170.0,106160.0,0.16505975]
[1762805768415,0.26777433,106170.0,106160.0,0.16505975]
[1762805768716,0.19949966,106170.0,106160.0,0.16505975]